fUST/lending_fUST_20250504
["ID","MTS","AMOUNT","RATE_DAILY","PERIOD"]
[359738010,1746289846270,-161.70068933,0.00018038,2]
[359738012,1746289846279,-248.53286522,0.00018173,2]
[359738014,1746289846288,-500.0,0.00018173,2]
[359738016,1746289846298,-151.26375873,0.00018173,2]
[359738018,1746289846307,-2287.06287833,0.00018273,2]
[359738327,1746289862654,273.640997,0.00020721,15]
[359738337,1746290193486,852.5338633,0.00017929,2]
[359738342,1746290438816,745.96713037,0.00017927,2]
[359738345,1746290541250,24900.0,0.00017026,2]
[359738351,1746290603463,310.8258218,0.00017026,2]
[359738352,1746290688998,652.7212391,0.00017926,2]
[359738359,1746290939310,571.13108423,0.00017925,2]
[359738363,1746291032214,-249.69393452,0.00018015,2]
[359738365,1746291032223,-300.0,0.00018023,2]
[359738366,1746291032233,-1200.0,0.00018023,2]
[359738368,1746291032243,-300.0,0.00018023,2]
[359738369,1746291032253,-1305.978651,0.00018023,2]
[359738371,1746291032263,-500.0,0.00018024,2]
[359738372,1746291032273,-159.16821725,0.00018024,2]
[359738374,1746291032283,-500.0,0.00018024,2]
[359738376,1746291032292,-500.0,0.00018024,2]
[359738378,1746291032302,-500.0,0.00018024,2]
[359738379,1746291032311,-500.0,0.00018024,2]
[359738381,1746291032321,-500.0,0.00018024,2]
[359738383,1746291032331,-500.0,0.00018024,2]
[359738385,1746291032340,-500.0,0.00018024,2]
[359738387,1746291032351,-500.0,0.00018024,2]
[359738388,1746291032360,-500.0,0.00018024,2]
[359738390,1746291032370,-500.0,0.00018024,2]
[359738392,1746291032380,-154.73076864,0.00018024,2]
[359738394,1746291032389,-3756.16445993,0.00018024,2]
[359738396,1746291032399,-160.0,0.00018025,2]
[359738398,1746291032409,-400.0,0.00018025,2]
[359738400,1746291032418,-400.0,0.00018025,2]
[359738402,1746291032427,-452.22,0.00018025,2]
[359738403,1746291032437,-400.0,0.00018025,2]
[359738405,1746291032447,-588.63,0.00018025,2]
[359738407,1746291032456,-400.0,0.00018025,2]
[359738408,1746291032466,-400.0,0.00018025,2]
[359738409,1746291032475,-400.0,0.00018025,2]
[359738410,1746291032484,-400.0,0.00018025,2]
[359738411,1746291032494,-400.0,0.00018025,2]
[359738412,1746291032504,-400.0,0.00018025,2]
[359738413,1746291032514,-425.34,0.00018025,2]
[359738414,1746291032643,-414.30453375,0.00018025,2]
[359738415,1746291032653,-400.0,0.00018025,2]
[359738416,1746291032664,-400.0,0.00018025,2]
[359738417,1746291032673,-639.81,0.00018025,2]
[359738418,1746291032683,-577.47,0.00018025,2]
[359738419,1746291032692,-400.0,0.00018025,2]
[359738420,1746291032702,-400.0,0.00018025,2]
[359738421,1746291032711,-400.0,0.00018025,2]
[359738422,1746291032721,-400.0,0.00018025,2]
[359738423,1746291032731,-839.66,0.00018025,2]
[359738424,1746291032740,-400.0,0.00018025,2]
[359738425,1746291032750,-928.08,0.00018025,2]
[359738426,1746291032759,-530.2,0.00018025,2]
[359738427,1746291032770,-647.69,0.00018025,2]
[359738428,1746291032779,-409.1390974,0.00018025,2]
[359738429,1746291032789,-400.0,0.00018025,2]
[359738430,1746291032799,-400.0,0.00018025,2]
[359738431,1746291032809,-400.0,0.00018025,2]
[359738432,1746291032819,-171.29452061,0.00018025,2]
[359738433,1746291032828,-400.0,0.00018025,2]
[359738434,1746291032837,-400.0,0.00018025,2]
[359738435,1746291032846,-684.78,0.00018025,2]
[359738436,1746291032855,-400.0,0.00018025,2]
[359738437,1746291032865,-773.61,0.00018025,2]
[359738438,1746291032874,-400.0,0.00018025,2]
[359738439,1746291032884,-549.94,0.00018025,2]
[359738441,1746291032897,-879.45,0.00018025,2]
[359738442,1746291032907,-400.0,0.00018025,2]
[359738443,1746291032916,-470.91,0.00018025,2]
[359738444,1746291032927,-1337.77348006,0.00018025,2]
[359738445,1746291032960,-508.85651994,0.00018025,2]
[359738446,1746291032970,-400.0,0.00018025,2]
[359738447,1746291032980,-400.0,0.00018025,2]
[359738448,1746291032991,-561.28,0.00018025,2]
[359738449,1746291033001,-1203.84,0.00018025,2]
[359738450,1746291033010,-400.0,0.00018025,2]
[359738451,1746291033019,-434.26,0.00018025,2]
[359738452,1746291033029,-400.0,0.00018025,2]
[359738453,1746291033038,-400.0,0.00018025,2]
[359738454,1746291033048,-854.66,0.00018025,2]
[359738455,1746291033058,-500.0,0.00018025,2]
[359738456,1746291033069,-203.29357168,0.00018025,2]
[359738457,1746291033078,-172.87144002,0.00018025,2]
[359738458,1746291033089,-400.0,0.00018026,2]
[359738459,1746291033099,-400.0,0.00018026,2]
[359738460,1746291033109,-400.0,0.00018026,2]
[359738461,1746291033119,-400.0,0.00018026,2]
[359738462,1746291033130,-400.0,0.00018026,2]
[359738463,1746291033140,-400.0,0.00018026,2]
[359738464,1746291033151,-614.2,0.00018026,2]
[359738465,1746291033161,-400.0,0.00018026,2]
[359738466,1746291033171,-400.0,0.00018026,2]
[359738467,1746291033181,-400.0,0.00018026,2]
[359738468,1746291033191,-355.66941476,0.00018026,2]
[359738469,1746291033201,-400.0,0.00018026,2]
[359738470,1746291033211,-400.0,0.00018026,2]
[359738471,1746291033221,-400.0,0.00018026,2]
[359738472,1746291033231,-400.0,0.00018026,2]
[359738473,1746291033242,-400.0,0.00018026,2]
[359738474,1746291033252,-400.0,0.00018026,2]
[359738475,1746291033263,-400.0,0.00018026,2]
[359738476,1746291033273,-400.0,0.00018026,2]
[359738477,1746291033283,-400.0,0.00018026,2]
[359738478,1746291033292,-318.96067976,0.00018026,2]
[359738479,1746291033302,-400.0,0.00018026,2]
[359738480,1746291033312,-400.0,0.00018026,2]
[359738481,1746291033322,-400.0,0.00018026,2]
[359738482,1746291033331,-400.0,0.00018026,2]
[359738483,1746291033341,-400.0,0.00018026,2]
[359738484,1746291033352,-400.0,0.00018026,2]
[359738485,1746291033362,-400.0,0.00018026,2]
[359738486,1746291033372,-400.0,0.00018026,2]
[359738487,1746291033381,-400.0,0.00018026,2]
[359738488,1746291033392,-400.0,0.00018026,2]
[359738489,1746291033402,-400.0,0.00018026,2]
[359738490,1746291033412,-400.0,0.00018026,2]
[359738491,1746291033421,-285.81346703,0.00018026,2]
[359738492,1746291033433,-114.18653297,0.00018026,2]
[359738493,1746291033443,-400.0,0.00018026,2]
[359738494,1746291033453,-400.0,0.00018026,2]
[359738495,1746291033463,-400.0,0.00018026,2]
[359738496,1746291033473,-705.93,0.00018026,2]
[359738497,1746291033482,-1423.1,0.00018026,2]
[359738498,1746291033492,-489.55,0.00018026,2]
[359738499,1746291033502,-496.6,0.00018026,2]
[359738500,1746291033513,-400.0,0.00018026,2]
[359738501,1746291033523,-400.0,0.00018026,2]
[359738502,1746291033533,-400.0,0.00018026,2]
[359738503,1746291033543,-400.0,0.00018026,2]
[359738504,1746291033553,-400.0,0.00018026,2]
[359738505,1746291033563,-534.05,0.00018026,2]
[359738506,1746291033574,-1149.2,0.00018026,2]
[359738507,1746291033584,-84.58396168,0.00018026,2]
[359738534,1746291038370,-400.0,0.00018024,2]
[359738537,1746291038379,-400.0,0.00018025,2]
[359738539,1746291038389,-315.41603832,0.00018026,2]
[359738541,1746291038398,-319.71367982,0.00018026,2]
[359738543,1746291038407,-484.73,0.00018026,2]
[359738544,1746291038416,-770.85,0.00018026,2]
[359738546,1746291038425,-503.2326711,0.00018026,2]
[359738548,1746291038435,-400.0,0.00018026,2]
[359738550,1746291038444,-400.0,0.00018026,2]
[359738552,1746291038453,-400.0,0.00018026,2]
[359738554,1746291038462,-400.0,0.00018026,2]
[359738556,1746291038471,-425.73,0.00018026,2]
[359738558,1746291038480,-400.0,0.00018026,2]
[359738559,1746291038489,-1929.95,0.00018026,2]
[359738561,1746291038498,-400.0,0.00018026,2]
[359738563,1746291038507,-400.0,0.00018026,2]
[359738565,1746291038517,-400.0,0.00018026,2]
[359738567,1746291038526,-518.90701312,0.00018026,2]
[359738569,1746291038535,-707.15,0.00018026,2]
[359738571,1746291038544,-581.06,0.00018026,2]
[359738573,1746291038553,-400.0,0.00018026,2]
[359738575,1746291038563,-768.14,0.00018026,2]
[359738576,1746291038572,-324.16360894,0.00018027,2]
[359738578,1746291038581,-400.0,0.00018027,2]
[359738580,1746291038590,-400.0,0.00018027,2]
[359738582,1746291038600,-400.0,0.00018027,2]
[359738584,1746291038608,-400.0,0.00018027,2]
[359738586,1746291038617,-180.8335701,0.00018027,2]
[359738588,1746291038626,-400.0,0.00018027,2]
[359738590,1746291038635,-400.0,0.00018027,2]
[359738592,1746291038645,-400.0,0.00018027,2]
[359738594,1746291038654,-400.0,0.00018027,2]
[359738595,1746291038663,-400.0,0.00018027,2]
[359738597,1746291038672,-465.04,0.00018027,2]
[359738599,1746291038681,-400.0,0.00018027,2]
[359738601,1746291038690,-400.0,0.00018027,2]
[359738603,1746291038699,-400.0,0.00018027,2]
[359738605,1746291038708,-430.81,0.00018027,2]
[359738617,1746291038820,-400.0,0.00018027,2]
[359738619,1746291038830,-447.45,0.00018027,2]
[359738621,1746291038839,-400.0,0.00018027,2]
[359738623,1746291038848,-1787.27,0.00018027,2]
[359738625,1746291038857,-407.92382197,0.00018027,2]
[359738627,1746291038866,-400.0,0.00018027,2]
[359738629,1746291038875,-404.66,0.00018027,2]
[359738630,1746291038884,-400.0,0.00018027,2]
[359738632,1746291038897,-908.52,0.00018027,2]
[359738634,1746291038906,-400.0,0.00018027,2]
[359738636,1746291038915,-400.0,0.00018027,2]
[359738638,1746291038925,-403.23,0.00018027,2]
[359738640,1746291038935,-400.0,0.00018027,2]
[359738642,1746291038945,-400.0,0.00018027,2]
[359738644,1746291038955,-400.0,0.00018027,2]
[359738646,1746291038964,-400.0,0.00018027,2]
[359738648,1746291038974,-400.0,0.00018027,2]
[359738650,1746291038983,-400.0,0.00018027,2]
[359738652,1746291038992,-400.0,0.00018028,2]
[359738654,1746291039001,-309.39832824,0.00018038,2]
[359738655,1746291039010,-303.0,0.000182,2]
[359738657,1746291039019,-1717.03712167,0.00018273,2]
[359738659,1746291039029,-400.0,0.00018298,2]
[359738661,1746291039038,-400.0,0.00018299,2]
[359738663,1746291039048,-400.0,0.00018299,2]
[359738665,1746291039057,-400.0,0.00018299,2]
[359738667,1746291039067,-588.63,0.00018299,2]
[359738669,1746291039077,-400.0,0.00018299,2]
[359738671,1746291039087,-400.0,0.00018299,2]
[359738673,1746291039096,-400.0,0.00018299,2]
[359738675,1746291039105,-400.0,0.00018299,2]
[359738677,1746291039114,-400.0,0.00018299,2]
[359738678,1746291039123,-232.21,0.00018299,2]
[359738680,1746291039134,-425.34,0.00018299,2]
[359738682,1746291039144,-400.0,0.00018299,2]
[359738684,1746291039154,-400.0,0.00018299,2]
[359738686,1746291039163,-639.81,0.00018299,2]
[359738688,1746291039173,-577.47,0.00018299,2]
[359738690,1746291039182,-400.0,0.00018299,2]
[359738692,1746291039192,-400.0,0.00018299,2]
[359738694,1746291039201,-400.0,0.00018299,2]
[359738696,1746291039210,-400.0,0.00018299,2]
[359738698,1746291039219,-839.66,0.00018299,2]
[359738700,1746291039229,-400.0,0.00018299,2]
[359738702,1746291039238,-321.04488716,0.00018299,2]
[359738704,1746291039250,-607.03511284,0.00018299,2]
[359738706,1746291039260,-530.2,0.00018299,2]
[359738708,1746291039270,-647.69,0.00018299,2]
[359738709,1746291039279,-400.0,0.00018299,2]
[359738711,1746291039290,-400.0,0.00018299,2]
[359738713,1746291039299,-400.0,0.00018299,2]
[359738715,1746291039309,-400.0,0.00018299,2]
[359738717,1746291039318,-400.0,0.00018299,2]
[359738719,1746291039327,-684.78,0.00018299,2]
[359738721,1746291039337,-400.0,0.00018299,2]
[359738723,1746291039347,-773.61,0.00018299,2]
[359738725,1746291039357,-400.0,0.00018299,2]
[359738726,1746291039367,-549.94,0.00018299,2]
[359738729,1746291039379,-879.45,0.00018299,2]
[359738730,1746291039390,-3.28488716,0.00018299,2]
[359738806,1746291040572,-396.71511284,0.00018299,2]
[359738808,1746291040582,-470.91,0.00018299,2]
[359738810,1746291040591,-1846.63,0.00018299,2]
[359738812,1746291040601,-400.0,0.00018299,2]
[359738814,1746291040610,-400.0,0.00018299,2]
[359738816,1746291040619,-561.28,0.00018299,2]
[359738818,1746291040628,-1203.84,0.00018299,2]
[359738820,1746291040637,-400.0,0.00018299,2]
[359738822,1746291040647,-434.26,0.00018299,2]
[359738824,1746291040656,-400.0,0.00018299,2]
[359738826,1746291040665,-209.34716072,0.00018299,2]
[359738829,1746291040675,-854.66,0.00018299,2]
[359738832,1746291040684,-400.0,0.00018299,2]
[359738834,1746291040693,-400.0,0.000183,2]
[359738836,1746291040702,-138.8965133,0.000183,2]
[359739119,1746291043445,-400.0,0.00018025,2]
[359739121,1746291043455,-400.0,0.00018026,2]
[359739124,1746291043467,-400.0,0.00018299,2]
[359739126,1746291043481,-222.86437541,0.000183,2]
[359739129,1746291043496,-400.0,0.000183,2]
[359739131,1746291043510,-400.0,0.000183,2]
[359739133,1746291043521,-614.2,0.000183,2]
[359739136,1746291043533,-400.0,0.000183,2]
[359739138,1746291043546,-400.0,0.000183,2]
[359739141,1746291043560,-277.62,0.000183,3]
[359739145,1746291043574,-832.86,0.000183,3]
[359739147,1746291043587,-400.0,0.000183,2]
[359739150,1746291043599,-400.0,0.000183,2]
[359739152,1746291043612,-400.0,0.000183,2]
[359739154,1746291043626,-400.0,0.000183,2]
[359739157,1746291043638,-400.0,0.000183,2]
[359739159,1746291043651,-400.0,0.000183,2]
[359739161,1746291043663,-400.0,0.000183,2]
[359739164,1746291043675,-400.0,0.000183,2]
[359739166,1746291043688,-400.0,0.000183,2]
[359739168,1746291043701,-400.0,0.000183,2]
[359739171,1746291043712,-400.0,0.000183,2]
[359739173,1746291043723,-400.0,0.000183,2]
[359739175,1746291043734,-400.0,0.000183,2]
[359739177,1746291043746,-400.0,0.000183,2]
[359739180,1746291043759,-400.0,0.000183,2]
[359739182,1746291043773,-400.0,0.000183,2]
[359739185,1746291043786,-400.0,0.000183,2]
[359739187,1746291043799,-400.0,0.000183,2]
[359739189,1746291043812,-400.0,0.000183,2]
[359739192,1746291043825,-400.0,0.000183,2]
[359739194,1746291043839,-400.0,0.000183,2]
[359739196,1746291043851,-400.0,0.000183,2]
[359739198,1746291043861,-400.0,0.000183,2]
[359739201,1746291043872,-400.0,0.000183,2]
[359739203,1746291043884,-408.03800038,0.000183,2]
[359739205,1746291043899,-400.0,0.000183,2]
[359739208,1746291043912,-705.93,0.000183,2]
[359739210,1746291043922,-1423.1,0.000183,2]
[359739212,1746291043934,-489.55,0.000183,2]
[359739214,1746291043946,-496.6,0.000183,2]
[359739217,1746291043959,-400.0,0.000183,2]
[359739219,1746291043972,-400.0,0.000183,2]
[359739221,1746291043982,-400.0,0.000183,2]
[359739223,1746291043992,-534.05,0.000183,2]
[359739225,1746291044003,-1149.2,0.000183,2]
[359739228,1746291044016,-400.0,0.000183,2]
[359739230,1746291044028,-484.73,0.000183,2]
[359739232,1746291044039,-770.85,0.000183,2]
[359739235,1746291044062,-400.0,0.000183,2]
[359739238,1746291044080,-400.0,0.000183,2]
[359739241,1746291044096,-400.0,0.000183,2]
[359739244,1746291044111,-425.73,0.000183,2]
[359739246,1746291044126,-400.0,0.000183,2]
[359739249,1746291044140,-1929.95,0.000183,2]
[359739251,1746291044155,-400.0,0.000183,2]
[359739254,1746291044168,-400.0,0.000183,2]
[359739256,1746291044182,-400.0,0.000183,2]
[359739258,1746291044194,-707.15,0.000183,2]
[359739261,1746291044208,-581.06,0.000183,2]
[359739263,1746291044220,-400.0,0.000183,2]
[359739265,1746291044234,-768.14,0.000183,2]
[359739268,1746291044246,-400.0,0.000183,2]
[359739270,1746291044259,-400.0,0.00018301,2]
[359739272,1746291044271,-400.0,0.00018301,2]
[359739275,1746291044283,-400.0,0.00018301,2]
[359739277,1746291044295,-400.0,0.00018301,2]
[359739279,1746291044307,-400.0,0.00018301,2]
[359739281,1746291044318,-400.0,0.00018301,2]
[359739284,1746291044330,-400.0,0.00018301,2]
[359739286,1746291044342,-400.0,0.00018301,2]
[359739288,1746291044353,-400.0,0.00018301,2]
[359739290,1746291044364,-465.04,0.00018301,2]
[359739292,1746291044376,-400.0,0.00018301,2]
[359739295,1746291044387,-400.0,0.00018301,2]
[359739297,1746291044399,-400.0,0.00018301,2]
[359739299,1746291044410,-430.81,0.00018301,2]
[359739301,1746291044422,-400.0,0.00018301,2]
[359739304,1746291044434,-447.45,0.00018301,2]
[359739306,1746291044445,-400.0,0.00018301,2]
[359739308,1746291044457,-1787.27,0.00018301,2]
[359739310,1746291044468,-400.0,0.00018301,2]
[359739313,1746291044479,-404.66,0.00018301,2]
[359739315,1746291044490,-400.0,0.00018301,2]
[359739317,1746291044501,-908.52,0.00018301,2]
[359739319,1746291044513,-400.0,0.00018301,2]
[359739321,1746291044524,-400.0,0.00018301,2]
[359739324,1746291044535,-403.23,0.00018301,2]
[359739326,1746291044547,-400.0,0.00018301,2]
[359739328,1746291044560,-400.0,0.00018301,2]
[359739331,1746291044572,-400.0,0.00018301,2]
[359739333,1746291044585,-400.0,0.00018301,2]
[359739335,1746291044596,-400.0,0.00018301,2]
[359739337,1746291044607,-400.0,0.00018301,2]
[359739340,1746291044618,-400.0,0.00018302,2]
[359739342,1746291044630,-158.397086,0.0001831,2]
[359739344,1746291044641,-151.0,0.0001831,2]
[359739346,1746291044651,-153.307776,0.0001831,2]
[359739348,1746291044660,-153.307776,0.0001831,2]
[359739350,1746291044669,-2565.827441,0.0001831,2]
[359739352,1746291044679,-1843.50063847,0.0001831,2]
[359739496,1746291046361,-722.32680253,0.0001831,2]
[359739498,1746291046371,-153.307776,0.00018318,2]
[359739500,1746291046380,-153.307776,0.00018318,2]
[359739502,1746291046390,-2565.827441,0.00018318,2]
[359739504,1746291046399,-2565.827441,0.00018318,2]
[359739506,1746291046409,-47.21294991,0.00018328,2]
[359739514,1746291046466,-810.06786882,0.00018328,2]
[359739516,1746291046475,-500.0,0.00018367,2]
[359739518,1746291046484,-501.48443816,0.00018367,2]
[359739520,1746291046493,-8.40405536,0.00018367,2]
[359739522,1746291046504,-491.59594464,0.00018367,2]
[359739524,1746291046514,-366.11196627,0.00018473,2]
[359739526,1746291046522,-500.0,0.00018473,2]
[359739528,1746291046531,-500.0,0.00018473,2]
[359739530,1746291046541,-400.0,0.00018572,2]
[359739532,1746291046550,-400.0,0.00018573,2]
[359739534,1746291046559,-400.0,0.00018573,2]
[359739536,1746291046568,-400.0,0.00018573,2]
[359739538,1746291046577,-588.63,0.00018573,2]
[359739540,1746291046586,-400.0,0.00018573,2]
[359739542,1746291046595,-400.0,0.00018573,2]
[359739544,1746291046604,-400.0,0.00018573,2]
[359739546,1746291046613,-400.0,0.00018573,2]
[359739548,1746291046622,-425.34,0.00018573,2]
[359739550,1746291046632,-400.0,0.00018573,2]
[359739551,1746291046641,-400.0,0.00018573,2]
[359739553,1746291046650,-639.81,0.00018573,2]
[359739555,1746291046659,-577.47,0.00018573,2]
[359739556,1746291046669,-400.0,0.00018573,2]
[359739557,1746291046677,-400.0,0.00018573,2]
[359739558,1746291046686,-400.0,0.00018573,2]
[359739559,1746291046696,-400.0,0.00018573,2]
[359739560,1746291046705,-839.66,0.00018573,2]
[359739561,1746291046714,-400.0,0.00018573,2]
[359739562,1746291046723,-928.08,0.00018573,2]
[359739563,1746291046733,-530.2,0.00018573,2]
[359739564,1746291046742,-647.69,0.00018573,2]
[359739565,1746291046752,-180.30138272,0.00018573,2]
[359739566,1746291046761,-400.0,0.00018573,2]
[359739567,1746291046770,-400.0,0.00018573,2]
[359739568,1746291046780,-400.0,0.00018573,2]
[359739569,1746291046789,-400.0,0.00018573,2]
[359739570,1746291046798,-684.78,0.00018573,2]
[359739571,1746291046808,-400.0,0.00018573,2]
[359739572,1746291046817,-773.61,0.00018573,2]
[359739573,1746291046826,-400.0,0.00018573,2]
[359739574,1746291046836,-549.94,0.00018573,2]
[359739576,1746291046845,-879.45,0.00018573,2]
[359739579,1746291046856,-400.0,0.00018573,2]
[359739581,1746291046866,-470.91,0.00018573,2]
[359739583,1746291046876,-1846.63,0.00018573,2]
[359739585,1746291046885,-400.0,0.00018573,2]
[359739587,1746291046897,-400.0,0.00018573,2]
[359739589,1746291046907,-309.57745403,0.00018573,2]
[359739687,1746291157761,893.72,0.00018,2]
[359739692,1746291360605,165.9628114,0.00017093,2]
[359739695,1746291397286,302.2256412,0.00017093,2]
[359739701,1746291565911,8190.4674006,0.00017025,2]
[359739703,1746291605972,8712.2583697,0.00017025,2]
[359739736,1746292146600,643.58229222,0.00017921,2]
[359739778,1746292232463,-2302.70509394,0.00018013,2]
[359739780,1746292232477,-98.61705051,0.00018013,2]
[359739790,1746292232567,-108.78294949,0.00018013,2]
[359739792,1746292232577,-151.0,0.00018013,2]
[359739794,1746292232587,-151.0,0.00018013,2]
[359739796,1746292232597,-151.46602498,0.00018013,2]
[359739798,1746292232606,-300.0,0.00018019,2]
[359739800,1746292232616,-1200.0,0.00018019,2]
[359739830,1746292232818,-300.0,0.00018019,2]
[359739832,1746292232833,-500.0,0.0001802,2]
[359739834,1746292232843,-500.0,0.0001802,2]
[359739836,1746292232854,-500.0,0.0001802,2]
[359739838,1746292232863,-500.0,0.0001802,2]
[359739840,1746292232873,-203.47587103,0.0001802,2]
[359739842,1746292232883,-187.68976317,0.0001802,2]
[359739844,1746292232893,-31111.81760252,0.00018021,2]
[359739846,1746292232903,-500.0,0.00018021,2]
[359739848,1746292232913,-485.56257049,0.00018021,2]
[359739851,1746292232923,-500.0,0.00018021,2]
[359739853,1746292232934,-500.0,0.00018021,2]
[359739855,1746292232945,-500.0,0.00018021,2]
[359739857,1746292232954,-500.0,0.00018021,2]
[359739859,1746292232964,-500.0,0.00018021,2]
[359739861,1746292232973,-500.0,0.00018021,2]
[359739863,1746292232982,-500.0,0.00018021,2]
[359739865,1746292232992,-500.0,0.00018021,2]
[359739867,1746292233001,-500.0,0.00018021,2]
[359739869,1746292233011,-500.0,0.00018021,2]
[359739871,1746292233022,-500.0,0.00018021,2]
[359739873,1746292233031,-466.534856,0.00018021,2]
[359739875,1746292233042,-372.5,0.00018021,2]
[359739876,1746292233052,-500.0,0.00018021,2]
[359739877,1746292233062,-500.0,0.00018021,2]
[359739878,1746292233072,-500.0,0.00018021,2]
[359739879,1746292233082,-500.0,0.00018021,2]
[359739880,1746292233093,-500.0,0.00018021,2]
[359739881,1746292233102,-500.0,0.00018021,2]
[359739882,1746292233112,-500.0,0.00018021,2]
[359739883,1746292233121,-500.0,0.00018021,2]
[359739884,1746292233131,-500.0,0.00018021,2]
[359739885,1746292233141,-500.0,0.00018021,2]
[359739886,1746292233151,-500.0,0.00018021,2]
[359739887,1746292233160,-287.08563671,0.00018021,2]
[359739888,1746292233170,-500.0,0.00018021,2]
[359739889,1746292233180,-291.3346188,0.00018021,2]
[359739890,1746292233189,-215.38625343,0.00018021,2]
[359739891,1746292233198,-254.83307888,0.00018021,2]
[359739892,1746292233208,-500.0,0.00018021,2]
[359739893,1746292233218,-500.0,0.00018021,2]
[359739894,1746292233227,-500.0,0.00018021,2]
[359739895,1746292233237,-500.0,0.00018021,2]
[359739896,1746292233247,-566.73,0.00018021,2]
[359739897,1746292233257,-400.0,0.00018021,2]
[359739898,1746292233267,-400.0,0.00018021,2]
[359739899,1746292233277,-549.24,0.00018021,2]
[359739900,1746292233287,-400.0,0.00018021,2]
[359739901,1746292233296,-400.0,0.00018021,2]
[359739902,1746292233306,-1103.52,0.00018021,2]
[359739903,1746292233315,-1615.8,0.00018021,2]
[359739904,1746292233325,-294.83755699,0.00018021,2]
[359739960,1746292238476,-206.77244301,0.00018021,2]
[359739962,1746292238487,-208.8544902,0.00018021,2]
[359739979,1746292238635,-191.1455098,0.00018021,2]
[359739981,1746292238645,-400.0,0.00018021,2]
[359739983,1746292238655,-400.0,0.00018021,2]
[359739985,1746292238665,-400.0,0.00018021,2]
[359739988,1746292238675,-819.87,0.00018021,2]
[359739990,1746292238685,-371.93485704,0.00018024,2]
[359739992,1746292238693,-400.0,0.00018024,2]
[359739994,1746292238703,-400.0,0.00018024,2]
[359739996,1746292238712,-400.0,0.00018024,2]
[359739998,1746292238722,-400.0,0.00018024,2]
[359740000,1746292238732,-400.0,0.00018024,2]
[359740002,1746292238743,-563.01,0.00018024,2]
[359740004,1746292238752,-400.0,0.00018024,2]
[359740006,1746292238761,-426.28,0.00018024,2]
[359740008,1746292238770,-400.0,0.00018024,2]
[359740010,1746292238780,-400.0,0.00018024,2]
[359740012,1746292238789,-400.0,0.00018024,2]
[359740014,1746292238798,-400.0,0.00018024,2]
[359740016,1746292238807,-400.0,0.00018024,2]
[359740018,1746292238817,-400.0,0.00018024,2]
[359740020,1746292238832,-400.0,0.00018024,2]
[359740023,1746292238848,-400.0,0.00018024,2]
[359740025,1746292238858,-400.0,0.00018024,2]
[359740027,1746292238869,-400.0,0.00018024,2]
[359740029,1746292238879,-412.23147505,0.00018024,2]
[359740031,1746292238889,-400.0,0.00018024,2]
[359740033,1746292238899,-400.0,0.00018024,2]